bitfinex/quotes_ETHUSD_20241207
["timestamp","ask_amount","ask_price","bid_price","bid_amount"]
[1733587320650,2.91451263,4006.2,4006.1,0.1]
[1733587323433,1.34561206,4006.2,4006.1,0.1]
[1733587323664,2.91477321,4006.2,4006.1,0.1]
[1733587323942,2.81476429,4006.2,4006.1,0.1]
[1733587324251,1.59156429,4006.2,4006.1,0.1]
[1733587324760,0.02241206,4006.2,4006.1,0.1]
[1733587324939,2.08633445,4006.6,4006.1,0.1]
[1733587324940,1.56915223,4006.4,4006.1,0.284737]
[1733587325166,0.02219525,4006.3,4006.1,1.84729]
[1733587325367,1.56915223,4006.6,4006.1,1.84729]
[1733587325703,0.02219525,4006.5,4006.3,4.07935045]
[1733587325920,0.02219525,4006.5,4006.4,1.7472]
[1733587326206,1.56915223,4006.9,4006.5,1.74716]
[1733587326361,1.56915223,4006.9,4006.2,1.74727]
[1733587326362,0.02219525,4006.5,4006.2,1.74727]
[1733587326569,1.56915223,4006.9,4006.3,0.264337]
[1733587326811,0.02239729,4006.8,4006.2,1.74727]
[1733587327063,2.14154952,4006.8,4006.2,1.74727]
[1733587327287,2.14154952,4006.8,4006.1,0.1]
[1733587327288,1.04591035,4006.7,4006.1,0.1]
[1733587327513,0.55,4006.6,4006.1,0.1]
[1733587327680,1.59591035,4006.6,4006.1,0.1]
[1733587328007,0.02239729,4006.5,4006.1,0.1]
[1733587328504,0.55,4006.2,4006.1,0.1]
[1733587329016,0.57234309,4006.2,4006.1,0.1]
[1733587331372,0.02234309,4006.2,4006.1,2.64343]
[1733587331623,1.04591035,4006.5,4006.1,1.57089726]
[1733587331914,1.04591035,4006.6,4006.4,1.7472]
[1733587332911,1.06822881,4006.5,4006.4,1.7472]
[1733587333867,0.02231846,4006.5,4006.4,1.7472]
[1733587334154,1.04591035,4006.9,4006.4,2.5775]
[1733587334371,1.04591035,4006.9,4006.8,1.74703]
[1733587335028,1.04591035,4006.9,4006.8,2.57733]
[1733587335377,1.72713423,4007.7,4006.8,2.57733]
[1733587335378,1.04591035,4007.0,4006.9,1.74698]
[1733587335599,3.81346868,4007.4,4006.9,2.33214045]
[1733587335600,1.04591035,4007.3,4006.9,2.33214045]
[1733587335859,1.04591035,4007.4,4006.9,2.33214045]
[1733587336028,1.04591035,4007.4,4007.3,1.74681]
[1733587336451,2.08633445,4007.8,4007.3,1.74681]
[1733587336452,1.04591035,4007.5,4007.3,1.74681]
[1733587336680,1.04591035,4007.5,4007.4,1.74676]
[1733587337444,1.04591035,4007.5,4006.5,2.23809404]
[1733587337445,1.04498719,4007.5,4005.7,1.56269313]
[1733587337770,1.04498719,4007.5,4006.2,0.8303]
[1733587337771,1.04498719,4006.9,4006.2,0.8303]
[1733587337977,1.04498719,4006.8,4006.7,0.8303]
[1733587338181,1.04498719,4007.0,4006.7,0.8303]
[1733587338329,1.04498719,4007.1,4006.8,1.74703]
[1733587338525,1.04498719,4007.1,4006.7,0.8303]
[1733587338754,0.55,4007.0,4006.4,3.16244045]
[1733587338971,1.04498719,4006.9,4006.4,3.4886845]
[1733587339177,0.55,4007.0,4006.4,3.4886845]
[1733587339178,1.04498719,4006.8,4006.4,2.6583845]
[1733587340556,0.55,4006.7,4006.1,0.8537]
[1733587340782,0.55,4006.5,4006.1,0.1]
[1733587341079,1.59498719,4006.5,4006.1,0.1]
[1733587341258,0.55,4006.3,4006.1,0.1]
[1733587341467,1.59498719,4006.3,4006.1,0.1]
[1733587342104,1.04498719,4006.2,4006.1,0.1]
[1733587342782,1.59498719,4006.3,4006.1,0.1]
[1733587343134,1.04498719,4006.2,4006.1,0.1]
[1733587344167,1.04531708,4006.2,4006.1,0.1]
[1733587344763,1.59531708,4006.2,4006.1,0.1]
[1733587345148,2.11915223,4006.2,4006.1,0.1]
[1733587345355,1.22434467,4006.2,4006.1,0.1]
[1733587345853,0.55,4006.2,4006.1,0.1]
[1733587346784,2.63633445,4006.2,4006.1,0.1]
[1733587347940,3.39983445,4006.2,4006.1,0.1]
[1733587348140,5.67404209,4006.2,4006.1,0.1]
[1733587348602,5.67394435,4006.2,4006.1,0.1]
[1733587348787,4.49404879,4006.2,4006.1,0.1]
[1733587348949,3.40363938,4006.2,4006.1,0.1]
[1733587350741,1.3135,4006.2,4006.1,0.1]
[1733587351544,3.06079,4006.2,4006.1,0.1]
[1733587353459,5.67292965,4006.2,4006.1,0.1]
[1733587355154,3.06079,4006.2,4006.1,0.1]
[1733587355368,6.46439887,4006.2,4006.1,0.1]
[1733587355689,3.85303918,4006.2,4006.1,0.1]
[1733587356388,6.46409368,4006.2,4006.1,0.1]
[1733587357183,3.85303918,4006.2,4006.1,0.1]
[1733587357384,6.46380676,4006.2,4006.1,0.1]
[1733587357604,3.85303918,4006.2,4006.1,0.1]
[1733587358085,6.46380676,4006.2,4006.1,0.1]
[1733587358381,3.06079,4006.2,4006.1,0.1]
[1733587361386,6.06079,4006.2,4006.1,0.1]
[1733587363093,9.19196245,4006.2,4006.1,0.1]
[1733587363245,7.78792423,4006.2,4006.1,0.1]
[1733587363442,10.510343,4006.2,4006.1,0.1]
[1733587363681,12.23747723,4006.2,4006.1,0.1]
[1733587365481,12.23669235,4006.2,4006.1,0.1]
[1733587366311,0.7686,4005.2,4004.4,0.7503]
[1733587366506,0.55,4004.9,4004.4,0.7503]
[1733587366799,0.55,4004.9,4004.2,0.7697]
[1733587367000,0.55,4005.0,4004.5,0.7697]
[1733587367156,0.55,4005.1,4004.5,2.51772]
[1733587368195,0.55,4005.2,4004.5,2.51772]
[1733587368561,0.55,4005.3,4004.5,2.51772]
[1733587369167,0.55,4005.3,4004.5,1.021472]
[1733587369348,0.55,4005.4,4004.6,0.7651]
[1733587369552,0.55,4005.6,4005.0,1.74779]
[1733587369748,0.55,4005.7,4005.0,1.74779]
[1733587370425,1.59320328,4005.7,4004.8,1.7479]
[1733587370815,0.55,4005.7,4004.8,1.7479]
[1733587371119,0.55,4005.7,4004.8,1.74787]
[1733587371332,0.55,4005.7,4004.9,1.74785]
[1733587372410,0.55,4005.7,4005.0,0.7651]
[1733587372618,1.04320328,4005.9,4005.3,1.74767]
[1733587372793,1.04320328,4006.0,4005.3,1.74767]
[1733587372984,4.87390328,4006.1,4005.3,1.74767]
[1733587373183,1.87390328,4006.1,4005.3,1.74767]
[1733587373525,1.04320328,4006.0,4005.2,1.74772]
[1733587373715,1.04320328,4006.0,4005.0,2.51291]
[1733587373927,2.29742,4005.9,4004.8,1.74789]
[1733587374124,0.55,4005.7,4004.8,2.51299]
[1733587374621,1.59320328,4005.7,4004.8,2.51299]
[1733587374793,0.55,4005.5,4004.8,2.51299]
[1733587376802,0.55,4005.6,4005.0,1.74781]
[1733587376998,0.55,4005.6,4004.8,0.7651]
[1733587376999,0.55,4005.6,4005.1,1.74777]
[1733587377225,1.04320328,4005.7,4005.1,0.7651]
[1733587377426,1.04320328,4006.2,4005.9,1.7474]
[1733587377735,1.04320328,4006.4,4005.9,1.7474]
[1733587378030,2.39550493,4006.6,4005.9,1.7474]
[1733587378031,1.04320328,4006.5,4005.9,1.7474]
[1733587378385,1.04320328,4006.5,4005.8,0.7651]
[1733587379425,0.55,4006.4,4005.8,0.7651]
[1733587379938,0.55,4006.4,4005.8,2.51256]
[1733587380292,0.55,4006.4,4005.8,0.7651]
[1733587380489,0.55,4006.4,4005.9,1.7474]
[1733587381395,1.59320328,4006.5,4005.9,1.7474]
[1733587381594,0.55,4006.5,4006.0,1.74736]
[1733587382118,0.55,4006.5,4005.8,0.7651]
[1733587382312,0.55,4006.6,4006.3,0.8145]
[1733587382920,1.59320328,4006.6,4006.3,2.56174]
[1733587383133,1.59320328,4006.6,4006.3,0.8145]
[1733587383134,1.04320328,4006.6,4006.3,0.8145]
[1733587383437,1.04320328,4006.7,4006.3,0.8145]
[1733587383805,1.04320328,4006.8,4006.3,0.8145]
[1733587384048,1.04320328,4006.7,4006.5,1.74716]
[1733587384745,0.55,4006.7,4006.5,1.74716]
[1733587384906,0.55,4006.7,4006.3,2.56174]
[1733587385108,1.59320328,4006.7,4006.3,0.8145]
[1733587385388,1.59320328,4006.5,4005.7,0.8274]
[1733587385520,2.43060575,4006.7,4005.8,1.74742]
[1733587385521,0.55,4006.3,4005.8,1.74742]
[1733587386096,0.55,4006.4,4005.7,0.8274]
[1733587386428,1.59320328,4006.4,4005.7,2.5749]
[1733587386601,0.55,4006.2,4005.7,2.5749]
[1733587387313,0.86580082,4006.2,4005.7,0.8274]
[1733587387515,1.9090041,4006.2,4005.7,0.8274]
[1733587387901,0.86580082,4006.2,4005.7,0.8274]
[1733587388739,0.86580082,4006.2,4005.5,1.74759]
[1733587388944,0.86580082,4006.2,4005.6,1.74755]
[1733587389447,0.55,4006.2,4005.9,1.74741]
[1733587389741,0.55,4006.3,4005.9,1.74741]
[1733587390450,0.55,4006.3,4005.5,0.8274]
[1733587390665,1.59320328,4006.3,4005.7,1.74749]
[1733587391547,0.55,4006.3,4005.8,1.74742]
[1733587392208,1.59320328,4006.3,4005.8,1.74742]
[1733587392405,0.55,4006.3,4005.8,1.74742]
[1733587393108,0.55,4006.3,4005.6,1.77251375]
[1733587393309,0.55,4006.3,4006.1,1.74731]
[1733587393623,0.55,4006.5,4005.8,2.57486]
[1733587394155,0.55,4006.6,4006.3,1.74724]
[1733587394322,2.08640657,4007.0,4006.1,1.74733]
[1733587394323,1.04320328,4006.8,4006.1,1.74733]
[1733587394653,1.56480493,4007.0,4006.2,1.74729]
[1733587394654,1.04320328,4007.0,4006.2,1.74729]
[1733587394856,1.04320328,4007.0,4006.5,1.74714]
[1733587395014,0.34118082,4007.0,4006.5,1.74714]
[1733587395412,0.34118082,4007.0,4006.4,1.74718]
[1733587395933,0.55,4006.9,4006.4,1.74718]
[1733587398250,0.55,4007.1,4006.4,1.74718]
[1733587399260,0.55,4007.1,4006.5,1.74716]
[1733587401363,0.78970033,4007.1,4006.3,1.74724]
[1733587401674,0.78970033,4007.1,4006.4,1.7472]
[1733587404171,0.78970033,4007.1,4006.0,0.8274]
[1733587404372,0.55,4007.1,4006.1,0.02495942]
[1733587404538,0.55,4007.1,4006.6,1.74711]
[1733587405069,1.04320328,4007.9,4007.1,0.8313]
[1733587405268,1.04320328,4008.0,4007.4,1.74673]
[1733587405480,1.85690328,4008.1,4007.4,1.74673]
[1733587405773,0.8137,4008.1,4007.5,1.74672]
[1733587406367,0.8137,4008.1,4007.1,0.8313]
[1733587406368,0.55,4008.0,4007.1,0.8313]
[1733587406584,0.55,4008.0,4007.4,1.74676]
[1733587408947,0.55,4008.0,4007.3,1.74681]
[1733587411175,0.55,4008.0,4007.4,1.74676]
[1733587415098,0.55,4008.0,4007.2,1.74684]
[1733587415301,0.55,4008.0,4007.1,1.32233605]
[1733587415468,0.55,4008.0,4007.3,1.74681]
[1733587419190,0.55,4008.0,4007.2,0.36544765]
[1733587419366,0.55,4008.0,4007.5,1.74672]
[1733587421600,1.59320328,4008.0,4007.5,1.74672]
[1733587422004,0.55,4007.8,4007.3,1.7468]
[1733587423113,0.55,4007.8,4007.4,1.74676]
[1733587423278,1.04320328,4007.9,4007.4,1.74676]
[1733587423279,0.55,4007.9,4007.4,1.74676]
[1733587423599,1.59320328,4007.9,4007.4,1.74676]
[1733587424016,0.55,4007.9,4007.4,1.74676]
[1733587424304,0.55,4007.9,4007.2,0.36544765]
[1733587424305,1.59320328,4007.9,4007.5,1.74671]
[1733587424872,0.55,4007.9,4007.5,1.74671]
[1733587425272,1.59320328,4007.9,4007.5,1.74671]
[1733587426202,1.59320328,4007.9,4007.2,1.44146365]
[1733587426402,1.59320328,4007.9,4007.3,1.74677]
[1733587428032,1.59320328,4007.9,4007.2,1.076016]
[1733587428513,1.59320328,4007.9,4007.3,1.74681]
[1733587428717,1.59320328,4007.9,4007.2,1.076016]
[1733587428914,0.55,4007.9,4007.4,1.74672]
[1733587429817,0.55,4007.7,4007.4,1.74672]
[1733587430124,0.55,4007.7,4007.2,1.076016]
[1733587432525,0.55,4007.7,4006.8,0.7589]
[1733587432719,0.55,4007.5,4006.5,1.076016]
[1733587432982,1.59320328,4007.5,4006.7,0.998781]
[1733587433116,0.55,4007.3,4006.5,2.823156]
[1733587433925,0.55,4007.3,4006.6,0.998806]
[1733587434125,0.55,4007.3,4006.5,2.823156]
[1733587434559,1.59320328,4007.3,4006.8,1.076016]
[1733587436554,0.55,4007.1,4006.8,1.076016]
[1733587437914,1.04320328,4007.3,4007.1,1.74689]
[1733587438116,1.04320328,4007.3,4007.0,0.7652]
[1733587438117,1.04320328,4007.4,4007.2,2.822856]
[1733587438317,1.04320328,4007.5,4007.2,2.822856]
[1733587438848,1.04320328,4007.5,4007.2,1.076016]
[1733587439059,1.04320328,4007.5,4007.4,1.74676]
[1733587439558,1.56480493,4007.6,4007.4,1.74676]
[1733587439761,1.56480493,4007.6,4007.2,1.076016]
[1733587439920,1.04542854,4007.5,4007.2,1.076016]
[1733587440458,0.55,4007.3,4006.9,1.74698]
[1733587440764,1.04566504,4007.2,4006.9,1.74698]
[1733587442242,1.04566504,4007.1,4006.9,1.74698]
[1733587442851,1.04566504,4007.1,4006.8,1.076016]
[1733587442852,1.04566504,4007.1,4006.8,2.823036]
[1733587443639,1.04566504,4007.0,4006.8,2.823036]
[1733587443930,1.04566504,4007.1,4006.8,2.823036]
[1733587444172,1.04566504,4007.0,4006.9,1.74698]
[1733587444455,1.04566504,4007.1,4007.0,1.74694]
[1733587446164,1.56480493,4007.2,4006.8,2.823036]
[1733587446398,1.04611716,4007.0,4006.8,2.823036]
[1733587447195,0.8054,4006.8,4006.3,0.7596]
[1733587447363,1.0463439,4006.6,4006.5,1.076016]
[1733587447569,1.56951586,4006.6,4006.0,0.7692]
[1733587447782,1.04647475,4006.4,4005.9,1.74741]
[1733587448089,0.8054,4006.2,4005.2,0.7692]
[1733587448401,0.55,4006.1,4005.8,1.076016]
[1733587448599,1.59647475,4006.1,4005.8,1.076016]
[1733587448775,0.55,4006.1,4005.8,1.076016]
[1733587448965,1.59647475,4006.1,4005.8,1.076016]
[1733587449288,0.55,4006.1,4005.8,1.076016]
[1733587450236,0.55,4006.2,4005.9,2.51661]
[1733587450527,0.55,4006.4,4006.1,1.076016]
[1733587450711,0.55,4006.4,4006.0,1.74737]
[1733587451484,0.55,4006.4,4005.9,0.7692]
[1733587452534,0.55,4006.4,4005.8,1.74745]
[1733587452981,1.59647475,4006.4,4005.8,1.74745]
[1733587453192,0.94713906,4006.4,4005.5,1.74755]
[1733587453723,1.99361381,4006.4,4005.5,1.74755]
[1733587454328,1.99361381,4006.4,4005.5,1.74757]
[1733587454533,0.55,4006.2,4005.0,0.7692]
[1733587454685,0.8054,4005.9,4005.0,1.74777]
[1733587455027,0.8054,4005.9,4004.7,0.7692]
[1733587455028,0.55,4005.6,4004.7,2.5171]
[1733587455222,0.55,4005.6,4004.7,0.7692]
[1733587455409,0.55,4005.6,4004.4,0.7692]
[1733587456130,1.59647475,4005.6,4004.4,0.7692]
[1733587456888,1.59647475,4005.6,4004.6,1.74795]
[1733587457125,0.55,4005.6,4004.6,1.74795]
[1733587457736,1.12188506,4005.6,4004.6,1.74795]
[1733587459226,1.12188506,4005.6,4004.7,1.74794]
[1733587460627,0.55,4005.6,4004.6,2.33249767]
[1733587460831,0.55,4005.6,4005.2,1.74772]
[1733587460996,0.55,4005.6,4004.8,0.7912]
[1733587461333,0.55,4005.6,4005.0,1.74781]
[1733587461700,0.55,4005.6,4004.6,2.33249767]
[1733587461914,0.55,4005.6,4004.6,4.08046767]
[1733587462107,0.55,4005.6,4004.7,1.74794]
[1733587464470,0.55,4005.4,4004.1,0.8133]
[1733587464773,0.55,4005.4,4004.3,1.74808]
[1733587464774,0.7697,4005.3,4004.3,1.74808]
[1733587465270,0.55,4005.2,4004.3,1.74808]
[1733587465469,0.55,4005.0,4004.1,1.7482]
[1733587465666,0.55,4004.8,4004.1,1.7482]
[1733587466057,0.55,4004.8,4004.0,0.2]
[1733587466234,0.7697,4004.7,4004.0,0.2]
[1733587466434,0.7697,4004.5,4004.0,0.2]
[1733587467379,0.55,4004.4,4004.0,0.2]
[1733587470603,0.7697,4004.3,4004.0,0.2]
[1733587470803,0.55,4004.2,4004.0,0.2]
[1733587472774,0.68197,4004.2,4004.0,0.2]
[1733587473298,1.3197,4004.1,4004.0,0.2]
[1733587476270,8.40039767,4004.1,4004.0,0.2]
[1733587476703,1.74852,4003.4,4002.1,2.56237]
[1733587477038,3.06799,4003.9,4002.3,1.74899]
[1733587477039,0.55,4003.2,4002.3,1.74899]
[1733587477201,0.98197,4003.2,4002.1,0.8133]
[1733587477388,0.55,4003.2,4002.3,1.74898]
[1733587480196,0.55,4003.0,4002.0,1.7491]
[1733587480408,0.55,4002.8,4002.0,1.7491]
[1733587480718,0.55,4002.8,4001.4,0.8036]
[1733587480894,0.794,4002.9,4002.7,1.47520007]
[1733587481096,0.794,4002.9,4001.7,0.8036]
[1733587481097,0.794,4002.9,4001.8,1.77418349]
[1733587481301,1.344,4003.8,4001.9,1.29462812]
[1733587481491,1.344,4003.8,4002.7,1.74881]
[1733587482199,0.794,4003.7,4002.7,1.74881]
[1733587482396,0.55,4003.6,4001.9,1.29462812]
[1733587482597,0.55,4003.4,4002.3,1.74896]
[1733587482791,0.794,4003.5,4001.9,3.04375812]
[1733587482792,0.55,4003.2,4001.9,3.04375812]
[1733587482984,0.55,4003.2,4002.5,1.74889]
[1733587483228,0.55,4003.4,4002.0,1.74912]
[1733587483548,0.55,4003.4,4002.5,1.7489]
[1733587485166,0.55,4003.4,4001.9,1.29462812]
[1733587485328,0.55,4003.4,4002.6,1.74884]
[1733587487044,0.55,4003.4,4002.7,1.74881]
[1733587488729,0.794,4003.5,4002.7,1.74881]
[1733587488927,0.794,4003.5,4002.2,1.77401345]
[1733587488928,0.7526,4003.8,4002.6,1.74886]
[1733587489128,0.7526,4003.8,4003.3,1.74855]
[1733587489372,0.7526,4003.8,4002.7,0.8155]
[1733587489528,0.7526,4003.8,4002.8,1.74877]
[1733587489727,0.7526,4003.8,4003.5,1.74845]
[1733587489963,0.7526,4003.8,4002.9,1.74868]
[1733587490345,0.7526,4003.8,4003.0,1.74864]
[1733587490538,0.55,4003.7,4003.0,1.74864]
[1733587491008,0.7526,4003.8,4002.7,0.8155]
[1733587491897,0.7526,4003.8,4003.4,1.74851]
[1733587492604,0.7526,4003.8,4003.5,1.74846]
[1733587494420,0.7526,4003.8,4003.0,1.74868]
[1733587494560,0.7526,4003.8,4003.3,1.74851]
[1733587495004,0.7526,4003.8,4003.0,1.74868]
[1733587495203,0.7526,4003.8,4003.4,1.7485]
[1733587497283,0.7526,4003.8,4002.7,0.8155]
[1733587497284,0.7526,4003.8,4003.2,1.74859]
[1733587497689,0.7526,4003.8,4002.4,1.74892]
[1733587498027,0.7526,4003.8,4002.1,1.74906]
[1733587498028,0.55,4003.5,4002.5,1.74887]
[1733587498206,0.355,4003.4,4002.5,1.74887]
[1733587498405,0.7545,4003.3,4002.5,1.74887]
[1733587499210,0.7545,4003.3,4002.6,1.74885]
[1733587500083,0.7545,4003.3,4002.4,1.74891]
[1733587501482,0.7545,4003.3,4002.7,1.7488]
[1733587501684,0.13045,4003.2,4002.7,1.7488]
[1733587501892,0.8153,4003.1,4002.7,1.7488]
[1733587502331,0.8153,4003.1,4002.8,1.74876]
[1733587503220,0.8153,4003.1,4001.8,2.51618]
[1733587503390,0.8153,4003.1,4003.0,1.74868]
[1733587503731,0.8153,4003.8,4003.1,1.7486]
[1733587503886,4.45842906,4003.8,4002.9,1.74872]
[1733587504084,5.50490381,4003.8,4002.9,1.74872]
[1733587504284,4.04647475,4003.7,4002.4,0.767]
[1733587504522,0.8256,4003.6,4002.7,1.74881]
[1733587504826,0.55152038,4003.5,4002.8,1.74876]
[1733587505138,0.55152038,4003.5,4002.4,0.767]
[1733587505340,0.55152038,4003.5,4002.9,1.74872]
[1733587505848,0.55,4003.2,4002.0,0.7758]
[1733587506050,0.8256,4003.0,4002.4,1.74894]
[1733587508417,0.8256,4003.0,4002.0,0.7758]
[1733587509478,0.8256,4003.0,4002.8,1.74876]
[1733587510460,1.04647475,4003.3,4002.6,0.7758]
[1733587510659,0.8256,4003.4,4002.8,1.74877]
[1733587511369,0.8256,4003.4,4002.9,1.74872]
[1733587512234,1.87207475,4003.4,4002.9,1.74872]
[1733587512867,0.8256,4003.4,4003.0,1.74867]
[1733587513281,0.8256,4003.4,4003.1,1.74864]
[1733587513780,0.8256,4003.4,4002.8,1.74873]
[1733587514278,1.87207475,4003.4,4002.8,1.74873]
[1733587514583,1.87207475,4003.4,4002.9,1.74873]
[1733587514754,1.87207475,4003.4,4002.3,0.7758]
[1733587514955,1.87207475,4003.4,4002.9,1.74872]
[1733587517251,1.04647475,4003.3,4002.9,1.74872]
[1733587519220,1.04647475,4003.2,4002.9,1.74872]
[1733587519439,1.04647475,4003.2,4002.3,0.96124853]
[1733587519631,1.04647475,4003.2,4002.9,1.74869]
[1733587522211,1.04647475,4003.1,4002.9,1.74869]
[1733587522912,1.04647475,4003.1,4002.9,1.7487]
[1733587523406,1.04647475,4003.0,4002.9,1.7487]
[1733587523616,1.04647475,4003.1,4003.0,1.74868]
[1733587523822,1.04647475,4003.1,4003.0,2.736248]
[1733587523982,1.04647475,4003.3,4003.0,2.736248]
[1733587524306,1.04647475,4003.3,4003.2,1.7486]
[1733587525032,1.56951586,4003.4,4003.3,1.74855]
[1733587525339,1.56951586,4003.5,4003.3,1.74855]
[1733587525922,1.56951586,4003.4,4003.3,1.74855]
[1733587526232,1.56951586,4003.4,4003.0,1.74865]
[1733587526389,1.86093264,4003.1,4002.7,1.7488]
[1733587526587,1.86093264,4003.1,4002.4,0.7559]
[1733587526827,1.04693264,4003.0,4002.8,1.74875]
[1733587527192,1.04693264,4002.9,4002.8,1.74875]
[1733587530592,1.04693264,4002.9,4002.8,2.50465]
[1733587532110,1.04693264,4002.9,4002.8,1.74875]
[1733587533350,1.30857749,4002.9,4002.8,1.74875]
[1733587533526,0.26164485,4002.9,4002.8,1.74875]
[1733587534217,1.83116071,4002.9,4001.4,1.74935]
[1733587534448,1.04713632,4002.6,4002.3,1.74897]
[1733587534651,1.30880154,4002.5,4002.3,1.74897]
[1733587534852,1.04713632,4002.5,4002.4,1.74895]
[1733587535148,1.23426257,4002.5,4002.4,1.74895]
[1733587535361,1.23420825,4002.5,4002.4,1.74895]
[1733587535945,1.23422863,4002.5,4002.4,1.74895]
[1733587537056,0.18712625,4002.5,4002.4,1.74895]
[1733587537363,1.23409007,4002.5,4002.4,1.74895]
[1733587537524,1.23409007,4002.5,4001.8,1.07868527]
[1733587537525,0.57143112,4002.5,4002.3,1.74899]
[1733587537728,1.23407033,4002.4,4002.3,1.74899]
[1733587540168,1.23394781,4002.4,4002.3,1.74899]
[1733587540934,1.23394781,4002.4,4001.8,1.74921]
[1733587541173,1.23394781,4002.3,4002.1,1.74906]
[1733587541329,0.18700373,4002.2,4002.0,1.74911]
[1733587541660,2.13052093,4002.4,4001.5,2.51002]
[1733587541661,0.18698175,4002.1,4001.7,1.74922]
[1733587541872,0.18698177,4002.0,4001.7,1.74922]
[1733587542046,1.23392585,4001.9,4001.7,1.74922]
[1733587542245,0.18698177,4001.8,4001.7,1.74922]
[1733587543132,1.23392585,4001.9,4001.7,1.74922]
[1733587543332,1.04694408,4002.0,4001.7,1.74922]
[1733587543562,3.16998342,4002.4,4001.4,1.74936]
[1733587543563,1.23382783,4001.9,4001.4,1.74936]
[1733587543765,2.08640657,4002.3,4001.4,1.74935]
[1733587543766,1.23382783,4001.8,4001.4,1.74935]
[1733587543984,2.61792153,4002.3,4001.0,0.8326]
[1733587543985,1.23382783,4001.7,4001.0,0.8326]
[1733587544134,1.04694408,4001.8,4001.7,1.74925]
[1733587544476,0.18683484,4001.9,4001.3,1.74943]
[1733587544632,1.04694408,4002.0,4001.9,1.74916]
[1733587544836,0.18682593,4002.0,4001.9,2.52156]
[1733587545038,1.23375727,4002.2,4002.0,1.74912]
[1733587545255,1.23375727,4002.2,4001.9,0.7724]
[1733587545256,1.04694408,4002.3,4001.6,0.7724]
[1733587545457,1.04694408,4002.1,4001.9,1.74916]
[1733587545674,1.04694408,4002.1,4001.7,1.74924]
[1733587545675,0.55,4001.9,4001.7,1.74924]
[1733587546235,0.55,4001.9,4001.3,2.52183]
[1733587546472,0.55,4001.9,4001.7,1.74923]
[1733587546776,0.73680363,4001.8,4001.3,0.7724]
[1733587546978,0.73680363,4001.7,4001.4,1.74934]
[1733587547185,0.55,4001.7,4001.4,1.74934]
[1733587547392,0.73680363,4001.7,4001.4,1.74934]
[1733587547603,0.96106636,4001.7,4001.1,1.74947]
[1733587547880,0.96106636,4001.7,4001.2,1.74945]
[1733587547881,0.55,4001.5,4001.2,1.74945]
[1733587548082,0.73680363,4001.5,4000.9,0.7724]
[1733587548288,0.55,4001.5,4001.3,1.74938]
[1733587548580,0.73672588,4001.6,4001.3,1.74938]
[1733587548783,1.1131511,4001.6,4001.3,1.74938]
[1733587548992,0.55,4001.4,4001.3,1.74938]
[1733587549151,0.73672588,4001.6,4001.3,1.74938]
[1733587550584,0.55,4001.6,4001.3,1.74938]
[1733587550742,0.73672588,4001.6,4001.3,1.74938]
[1733587550946,1.04694408,4001.9,4001.3,1.74938]
[1733587550947,0.55,4001.7,4001.3,1.74938]
[1733587551154,0.55,4001.5,4000.9,0.7724]
[1733587551355,0.55,4001.3,4000.6,0.7724]
[1733587551787,0.55,4001.1,4001.0,1.74955]
[1733587552095,0.73665545,4001.1,4001.0,1.74955]
[1733587552294,0.55,4001.2,4001.0,1.74955]
[1733587552668,0.73665545,4001.2,4001.0,1.74955]
[1733587552866,0.55,4001.2,4001.0,1.74955]
[1733587553326,0.55,4001.1,4000.6,1.74973]
[1733587553518,0.55,4001.1,4000.3,0.7724]
[1733587553676,0.55,4000.9,4000.3,0.7724]
[1733587554079,0.55,4000.9,4000.3,1.74983]
[1733587554714,0.73665545,4000.9,4000.4,1.7498]
[1733587555043,0.82950995,4000.9,4000.4,1.7498]
[1733587555203,1.01600683,4000.9,4000.4,1.7498]
[1733587555395,0.82950995,4000.9,4000.2,1.74991]
[1733587555989,0.82950995,4000.9,4000.3,1.74985]
[1733587557294,0.82950995,4000.9,4000.5,1.74977]
[1733587558454,0.55,4000.9,4000.7,1.74967]
[1733587559103,0.55,4001.2,4000.9,1.74958]
[1733587559280,0.55,4001.2,4000.6,0.7724]
[1733587559481,0.7574,4001.3,4000.6,0.7724]
[1733587559682,0.973467,4001.6,4000.6,0.7724]
[1733587560226,0.7951,4001.4,4000.0,9.8096]
[1733587560397,0.7951,4001.2,4000.3,1.74984]
[1733587560584,0.7951,4001.2,4000.0,9.8096]
[1733587560929,0.18649688,4001.3,4000.4,0.8096]
[1733587561081,0.7951,4001.5,4001.0,1.74955]
[1733587561289,0.55,4001.4,4001.0,1.74955]
[1733587564114,0.55,4001.4,4000.9,1.74958]
[1733587564325,0.73649688,4001.4,4000.9,1.74958]
[1733587564480,0.73649688,4001.4,4001.0,1.74955]
[1733587564825,0.73649688,4001.4,4000.4,0.8096]
[1733587564826,0.55,4001.4,4001.1,1.74948]
[1733587565026,0.70479541,4001.4,4001.1,1.74948]
[1733587565184,0.55,4001.4,4000.4,0.8096]
[1733587565533,0.55,4001.4,4001.3,1.74943]
[1733587565699,0.8131,4001.8,4001.0,0.7929]
[1733587565700,0.73649688,4001.7,4001.1,1.74951]
[1733587566180,0.73649688,4001.7,4001.0,0.7929]
[1733587566380,0.89145657,4001.7,4001.0,0.7929]
[1733587566688,0.55,4001.5,4001.1,1.74951]
[1733587567033,0.8131,4000.4,3998.4,0.1670372]
[1733587567185,0.8131,4000.2,3998.9,1.75047]
[1733587567388,0.73657738,4000.1,3999.0,1.75042]
[1733587567712,2.11355882,4000.1,3998.8,1.75052]
[1733587568247,0.1938,3998.4,3998.1,7.2e-06]
[1733587568682,0.55,3998.3,3998.1,7.2e-06]